Cogmind - Beta 14 @@@ ROGUE MODE // 2024.10.07 @ 22:16:07 Player: Syanka Result: Destroyed self via exploding Nuclear Reactor Performance ------------- Evolutions (1) 500 Regions Visited (2) 400 Robots Destroyed (26) 130 Value Destroyed (508) 508 Prototype IDs (0) 0 Alien Tech Used (0) 0 Bonus (0) 0 TOTAL SCORE: 1538 Bonus ------- None Cogmind --------- Core Integrity 0/400 Matter 300/300 Energy 95/100 System Corruption 0% Temperature Cool (6) Movement Core (150) Ox2 Location -9/Materials Parts ------- > --- POWER (1) -------- (None) > --- PROPULSION (3) --- (None) > --- UTILITY (3) ------ Small Storage Unit Structural Scanner > --- WEAPON (2) ------- Flail > --- INVENTORY (8) ---- Light Ion Engine Sensor Array Seismic Detector Mining Laser Plasma Cutter Flail Mining Claw Peak State ------------ > --- POWER ------------ Ion Engine > --- PROPULSION ------- Aluminum Leg Aluminum Leg > --- UTILITY ---------- Small Storage Unit Seismic Detector > --- WEAPON ----------- Flail Flail > --- INVENTORY -------- Light Ion Engine Light Ion Engine Seismic Detector Mining Laser Plasma Cutter Flail Flail [Rating: 10] Favorites ----------- Power Ion Engine Engine Ion Engine Propulsion Aluminum Leg Leg Aluminum Leg Utility Small Storage Unit Device Seismic Detector Storage Small Storage Unit Weapon Mining Claw Energy Gun Medium Laser Special Weapon Mining Laser Impact Weapon Flail Slashing Weapon Mining Claw Build | -11 -10 -9 ------- Run | Yrd Mat Mat Slots Evolved 2 | . . 2 Power . | . . . Propulsion 1 | . . 1 Utility 1 | . . 1 Weapon . | . . . Parts Attached 17 | 6 8 3 Power 3 | 1 1 1 Engine 3 | 1 1 1 Core . | . . . Reactor . | . . . Propulsion 4 | 2 2 . Treads . | . . . Leg 4 | 2 2 . Wheel . | . . . Hover . | . . . Flight . | . . . Utility 3 | 2 . 1 Device 2 | 1 . 1 Storage 1 | 1 . . Processor . | . . . Hackware . | . . . Protection . | . . . Artifact . | . . . Weapon 7 | 1 5 1 Energy Gun 1 | 1 . . Energy Cannon . | . . . Ballistic Gun . | . . . Ballistic Cannon . | . . . Launcher . | . . . Special Weapon 1 | . 1 . Impact Weapon 3 | . 2 1 Slashing Weapon 2 | . 2 . Piercing Weapon . | . . . Special Melee Weapon . | . . . Unidentified Prototypes . | . . . Parts Lost 6 | . . 6 Power 2 | . . 2 Propulsion 2 | . . 2 Utility 1 | . . 1 Weapon 1 | . . 1 Highest Loss Streak 6 | . . 6 To Critical Strikes . | . . . Average Slot Usage (%) 95 | . 98 77 Engine 13 | . 14 8 Leg 26 | . 28 15 Device 15 | . 14 21 Storage 13 | . 14 11 Impact Weapon 11 | . 12 2 Slashing Weapon 13 | . 12 18 Peak Build Rating 10 | 6 10 9 Average Rating 7 | 4 8 8 On Entrance 4 | . 5 8 Naked Turns . | . . . Heaviest Build 16 | 13 15 16 Greatest Support 20 | 20 20 20 Greatest Overweight (x) 4 | . . 4 Average Overweight (x) . | . . . Largest Inventory Capacity 8 | 8 8 8 Average Capacity 7 | 7 8 8 Most Carried 8 | 4 8 8 Average Carried 5 | . 7 7 Final Capacity 8 | 8 8 8 Final Carried 8 | 4 8 7 Class Distribution -------------------- 100% | Mutant Dominant Class ---------------- Mutant | -10/Materials Mutant | -9/Materials Resources | -11 -10 -9 ----------- Run | Yrd Mat Mat Matter Collected 330 | 235 70 25 Remotely . | . . . Salvage Created 661 | 86 414 161 Parts 28 | 8 12 8 Haulers Intercepted 1 | . 1 . Recyclers Shooed . | . . . Parts Field Recycled . | . . . Retrieved Matter . | . . . Parts Self-Destructed . | . . . Prevented . | . . . Kills | -11 -10 -9 ------- Run | Yrd Mat Mat Combat Hostiles Destroyed 14 | . 10 4 Melee 6 | . 6 . AOE 1 | . . 1 Classes Destroyed 11 | 2 7 2 Builder 1 | . 1 . Tunneler 4 | 3 1 . Hauler 1 | . 1 . Recycler 1 | 1 . . Mechanic 1 | . 1 . Operator 2 | . 2 . Watcher 2 | . 2 . Swarmer 6 | . 6 . Grunt 5 | . 4 1 Duelist 1 | . . 1 Sentry 2 | . . 2 Best Kill Streak 4 | 3 4 4 Combat Bots Only 4 | . 4 4 Max Kills in Single Turn 1 | 1 1 1 Gunslinging . | . . . Exploded 1 | . . 1 Melee 1 | . 1 . Uniques/NPCs Destroyed . | . . . Combat | -11 -10 -9 -------- Run | Yrd Mat Mat Hostile Shots Fired 95 | . 34 61 Missed 24 | . 9 15 Damage Taken 1089 | . 306 783 Core 558 | . 139 419 Absorbed by Shields . | . . . Core Remaining (%) 72 | 100 44 . Volleys Fired 27 | 25 2 . Largest 1 | 1 1 . Hottest 100 | 50 100 . Shots Fired 27 | 25 2 . Gun 25 | 25 . . Cannon . | . . . Launcher . | . . . Special 2 | . 2 . Kinetic . | . . . Thermal 27 | 25 2 . Explosive . | . . . Electromagnetic . | . . . Robot Hit Streak 5 | 5 1 . Robot Miss Streak 2 | 2 1 . Penetration Max . | . . . Secondary Targets . | . . . Shots Hit Robots 64 | 16 27 21 Core Hits 14 | 5 7 2 Critical Kills 1 | . 1 . Critical Parts Destroyed 7 | . 4 3 Critical Strikes 10 | 2 5 3 Burn 2 | 2 . . Smash 8 | . 5 3 Melee Attacks 72 | . 43 29 Impact 50 | . 39 11 Slashing 22 | . 4 18 Piercing . | . . . Sneak Attacks 6 | . 6 . Combat Hostiles . | . . . Follow-up Attacks 13 | . 5 8 Damage Inflicted 1889 | 209 1017 663 Guns 185 | 185 . . Cannons . | . . . Explosions 127 | . . 127 Melee 1529 | . 993 536 Ramming 24 | 24 . . Kinetic . | . . . Thermal 209 | 185 24 . Explosive 127 | . . 127 Electromagnetic . | . . . Impact 1253 | . 966 287 Slashing 276 | . 27 249 Piercing . | . . . Highest Corruption . | . . . Average Corruption . | . . . Corruption Purged . | . . . Corruption Blocked . | . . . Overload Shots . | . . . Overflow Damage 491 | . 380 111 Projectiles . | . . . Explosions . | . . . Melee 491 | . 380 111 Knockbacks 2 | . 1 1 Impact 2 | . 1 1 Kinetic . | . . . Secondary . | . . . Self-Inflicted Damage 91 | . . 91 Shots 1 | . . 1 Rammed . | . . . Targets Rammed 9 | 9 . . Kicked 9 | 9 . . Crushed . | . . . Highest Temperature 120 | 120 40 . Average Temperature 48 | 53 20 . Received Heat Transfer 285 | . 75 210 Siege Activations . | . . . Robots Corrupted 12 | . 9 3 Combat Hostiles 7 | . 4 3 Parts Fried 16 | . 13 3 Impact Corruptions 24 | . 20 4 Robots Melted . | . . . Combat Hostiles . | . . . Parts Melted 5 | 5 . . Heat Transferred 753 | 703 50 . Parts Sabotaged . | . . . Parts Stolen . | . . . Parts Stripped . | . . . Power Chain Reactions . | . . . Alert | -11 -10 -9 ------- Run | Yrd Mat Mat Peak Influence 239 | 20 239 61 Initial 15 | . 13 15 Average 89 | 5 126 29 Maximum Alert Level 1 | . 1 . Low Security (%) 85 | 100 79 100 Level 1 14 | . 20 . Level 2 . | . . . Level 3 . | . . . Level 4 . | . . . Level 5 . | . . . High Security . | . . . Max Security . | . . . Squads Dispatched 2 | . 2 . Investigation . | . . . Extermination . | . . . Reinforcement 2 | . 2 . Assault . | . . . Garrison . | . . . Intercept . | . . . Searches Triggered . | . . . Construction Impeded . | . . . Haulers Reinforced . | . . . Active Scanning Responses . | . . . Cargo Convoy Interrupts . | . . . Stealth | -11 -10 -9 --------- Run | Yrd Mat Mat Distress Signals 3 | . 2 1 Communications Jammed . | . . . Distress Signals . | . . . Times Spotted 26 | . 18 8 Peak Tracking Total 5 | . 3 5 Tactical Retreats 1 | . 1 . Traps | -11 -10 -9 ------- Run | Yrd Mat Mat Traps Triggered 3 | . 3 . Indirectly . | . . . Trap Hack Attempts . | . . . Triggered . | . . . Disarmed . | . . . Reprogrammed . | . . . Reused . | . . . Traps Extracted . | . . . Installed . | . . . Triggered . | . . . Machines | -11 -10 -9 ---------- Run | Yrd Mat Mat Machines Disabled 1 | . . 1 Max in Single Turn 1 | . . 1 Machines Repaired . | . . . Machines Dismantled . | . . . Machines Sabotaged . | . . . Overloaded Fab Kills . | . . . Hacking | -11 -10 -9 --------- Run | Yrd Mat Mat Machines Accessed 5 | . 5 . Terminals 5 | . 5 . Fabricators . | . . . Repair Stations . | . . . Recycling Units . | . . . Scanalyzers . | . . . Garrison Access . | . . . Total Hacks 7 | . 7 . Successful 4 | . 4 . Failed 3 | . 3 . Catastrophic 2 | . 2 . Database Lockouts . | . . . Manual 7 | . 7 . Terminals 7 | . 7 . Fabricators . | . . . Repair Stations . | . . . Recycling Units . | . . . Scanalyzers . | . . . Garrison Access . | . . . Terminal Hacks . | . . . Fabricator Hacks . | . . . Repair Station Hacks . | . . . Recycling Unit Hacks . | . . . Scanalyzer . | . . . Garrison Access Hacks . | . . . Unauthorized Hacks 4 | . 4 . Terminals 4 | . 4 . Skim 4 | . 4 . Fabricators . | . . . Repair Stations . | . . . Recycling Units . | . . . Scanalyzers . | . . . Garrison Access . | . . . Data Cores Recovered . | . . . Used . | . . . Hacking Detections 2 | . 2 . Full Trace Events . | . . . Feedback Events . | . . . Feedback Blocked . | . . . Robot Schematics Acquired . | . . . Robots Built . | . . . Authchips . | . . . Time . | . . . Total Robot Build Rating . | . . . Part Schematics Acquired . | . . . Parts Built . | . . . Authchips . | . . . Time . | . . . Total Part Build Rating . | . . . Parts Repaired . | . . . Time . | . . . Parts Recycled . | . . . Recycled Matter . | . . . Retrieved Matter . | . . . Retrieved Components . | . . . Parts Scanalyzed . | . . . Part Schematics Acquired . | . . . Parts Damaged . | . . . Bothacking | -11 -10 -9 ------------ Run | Yrd Mat Mat Used RIF Installer . | . . . Robots Hacked . | . . . Non-combat . | . . . Combat . | . . . Robot Hacks Applied . | . . . Relay Couplers Released . | . . . Fabnet Peak Effective % . | . . . Robots Rewired . | . . . Allies Hacked . | . . . Hacks Repelled . | . . . Allies | -11 -10 -9 -------- Run | Yrd Mat Mat Total Allies . | . . . Largest Group . | . . . Highest-Rated Group . | . . . Highest-Rated Ally . | . . . Total Orders . | . . . Ally Attacks . | . . . Total Damage . | . . . Kills . | . . . Allies Corrupted . | . . . Allies Melted . | . . . Intel | -11 -10 -9 ------- Run | Yrd Mat Mat Robot Analysis Total . | . . . Derelict Logs Recovered . | . . . Drone Launches . | . . . Drone Recoveries . | . . . Exploration | -11 -10 -9 ------------- Run | Yrd Mat Mat Turns Passed 1380 | 302 935 143 Spaces Moved 894 | 193 645 56 Core 6 | 5 . 1 Treads . | . . . Legs 888 | 188 645 55 Wheels . | . . . Hover . | . . . Flight . | . . . Fastest Speed 50 | 50 120 120 Average Speed 119 | 118 120 122 Slowest Speed 250 | 120 120 250 Overloaded Moves . | . . . Propulsion Burnouts . | . . . Robots Hopped . | . . . Cave-ins Triggered . | . . . Exploration Rate (%) 38 | 8 96 12 Regions Visited 2 Branch Regions . Pre-discovered Areas . | . . . Known Exits Taken . | . . . Unknown Exits Taken 2 | 1 1 . Scrap Searched . | . . . Spaces Dug 2 | . 1 1 Terrain Destroyed 9 | . 1 8 Melee 2 | . 1 1 Projectile . | . . . AOE 7 | . . 7 Terrain Rammed . | . . . Walls Destroyed . | . . . Machines Disabled . | . . . Actions | -11 -10 -9 --------- Run | Yrd Mat Mat Total 1073 | 238 742 93 Wait 57 | . 43 14 Move 892 | 192 644 56 Hop . | . . . Pick Up 10 | 4 6 . Fast Attach 10 | 6 4 . Attach 3 | . 1 2 Detach 2 | 1 1 . Swap 4 | . 3 1 Drop 4 | 1 3 . Fire 27 | 25 2 . Melee 55 | . 35 20 Ram . | . . . Kick 9 | 9 . . Crush . | . . . Escape Stasis . | . . . Rewire . | . . . Trap . | . . . Miscellaneous . | . . . Route ------- -11/Scrapyard -10/Materials (discovered 4 exits: [*Mat x3] / [*Min]) -9/Materials History --------- Turn | Location | Event 4 | -11/Scrapyard | Discovered new exit (range 16) 303 | -11/Scrapyard | Entered Materials 305 | -10/Materials | Build established: Mutant 545 | -10/Materials | Discovered new exit (range 13) 672 | -10/Materials | Discovered new exit (range 16) 744 | -10/Materials | Core integrity fell below 50% 855 | -10/Materials | Discovered new exit (range 6) 932 | -10/Materials | Discovered new exit (range 7) 1238 | -10/Materials | Entered another Materials area 1238 | -9/Materials | Evolved 2 slots: Propulsion x1, Utility x1 1371 | -9/Materials | Core integrity fell below 50% 1381 | -9/Materials | Core integrity fell below 20% 1381 | -9/Materials | Destroyed self via exploding Nuclear Reactor Last Messages --------------- effect. 01359_ Mining Claw follow-up attack on Y-45 Defender. 01360_ Y-45 Defender system terminally corrupted. 01360_ Lgt. Treads fried. 01360_ Heat Sink fried. 01361_ Acquired 25 matter. 01364_ Mining Claw follow-up attack on L-31 Rogue. 01365_ Lgt. Ion Engine destroyed. 01367_ Mining Claw follow-up attack on L-31 Rogue. 01373_ Mining Claw destroyed. 01375_ Seismic Detector destroyed. 01378_ Destroyed Imp. Ion Engine. 01378_ L-31 Rogue system corrupted by crushing effect. 01379_ L-31 Rogue system terminally corrupted. 01379_ Katana fried. 01381_ Nuclear Reactor explodes. [Achievement: Batter Up] 01381_ G-34 Mercenary destroyed. Map ----- +----------------------------------------------------+ | ??????????????????????????????????? | | ??????????????????????????????????? | | ??????????????????????????????????? | | ??????????????????????????????????? | | ??????????????????????????????????? | | ??????????????????????????????????? | | ??????????????????????????????????? | | ??????????????????????????????????? | | ??????????????????????????????????? | | ??????????????????????????????????? | | ????????!!!!??????????????????????? | | ???????!!!!!??????????????????????? | | ??????# #????????????????????? | | ??????## ###### ???????????????? | | ??????## ###### ???????????????? | | ??????## ???????????????? | | ??????## ##????????????????? | | ??????## ^ ##????????????????? | | ??????## ^ ##????????????????? | | ??????## #####?????????????? | | ??????## g #####?????????????? | | ??????## ?????????????? | | ??????## ?????????????????? | | ??????## %[=g ?????? ##??????????? | | ?????### !*! ?????!##??????????? | | ?????#####@ ### !##??????????? | | ?????## = * + !###??????????? | | ?????## / % ########???????????? | | ?????## ! ######?????????????? | | ?????## #??????????????????? | | ?????## ################ ? | | ?????##### #####################+#? | | ?????####### ? | | ????????#### ? | | ??????????## ? | | ??????????## ##########+##??????? | | ??????????## ######## ??????? | | ??????????## ######## ??????????? | | ???#####??## ######## ??????????? | | ???#####??## # [ # ??????????? | | ???## ? # # # ??????????? | | ???## """ # # [ ##??????????? | | ???## """ + + ] ##??????????? | | ???## """ # # ##??????????? | | ???## ? # # ##??????????? | | ???## ??? # #########??????????? | | ???###????## #########??????????? | | ???###????## ##?????????????????? | | ??????????## ##?????????????????? | | ???######### ##?????????????????? | +----------------------------------------------------+ Best States ------------- Heat Dissipation 28 Energy Generation 10 Energy Capacity 250 Matter Stores 300 Matter Capacity 300 Sight Range 16 Terrain Scan Density 10 Evasion (%) 55 Item Schematics ----------------- None Robot Schematics ------------------ None Fabricated ------------ Nothing Alien Tech Used ----------------- None Achievements -------------- Batter Up Challenges ------------ None Game ------ Seed ModifiedVisualStripper Manual? 0 Play Time 00:10:12 Cumulative 166.3 hours Start 2024.10.07 @ 22:07:09 End 2024.10.07 @ 22:16:07 Sessions 1 Manual Loads 0 Difficulty Rogue Special Mode None Game No. 97 Rogue 84 Adventurer 13 Explorer 0 Win Type - Total 3 Types 3/0/0/0/0/0/0/0/0 Lore% 51 Gallery% 67 Achievement% 56 Wizard Run 0 Options --------- Layout 2 ASCII 0 Keyboard 1 Movement Numpad Keybinds 0 Fullscreen 2 Font 16/Swanston Map View 55x47 Zoom Use 0% Tactical HUD 1 Map Filters NONE Filters NONE Steam 0 RUN: c6e62e7d-18b2-4120-80b6-3b0ab99e1e3d